Cogmind - Beta 15 @@@ ROGUE MODE // 2025.09.01 @ 16:35:12 Player: beans Result: Destroyed by G-47 Trooper with Particle Gun Performance ------------- Evolutions (2) 1000 Regions Visited (5) 1000 Robots Destroyed (42) 210 Value Destroyed (1051) 1051 Prototype IDs (1) 20 Alien Tech Used (0) 0 Bonus (-17) -17 TOTAL SCORE: 3264 Bonus ------- Friendly Fire -17 Cogmind --------- Core Integrity 0/550 Matter 284/300 Energy 68/100 System Corruption 0% Temperature Cool (13) Movement Flying (115) Ox1 Location -8/Materials Parts ------- > --- POWER (1) -------- (None) > --- PROPULSION (2) --- Cesium-ion Thruster > --- UTILITY (5) ------ Improved Targeting Computer Launcher Guidance Computer > --- WEAPON (3) ------- Heavy Ion Cannon > --- INVENTORY (5) ---- Ion Engine Aluminum Leg Combat Airjet Improved Heat Sink Peak State ------------ > --- POWER ------------ Light Angular Momentum Engine > --- PROPULSION ------- Light Treads Light Treads > --- UTILITY ---------- Improved Heat Sink Small Storage Unit Improved Targeting Computer Launcher Guidance Computer Shock Absorption System > --- WEAPON ----------- Improved Assault Rifle Improved Assault Rifle Improved Assault Rifle > --- INVENTORY -------- Ion Engine Aluminum Leg Combat Airjet EM Pulse Gun Beamcaster Light Assault Rifle Rocket Launcher [Rating: 31] Favorites ----------- Power Ion Engine Engine Ion Engine Propulsion Light Treads Treads Light Treads Hover Unit Combat Airjet Flight Unit Cesium-ion Thruster Utility Small Storage Unit Device Improved Heat Sink Storage Small Storage Unit Processor Targeting Computer Protection Improved Utility Shielding Weapon Medium Laser Energy Gun Medium Laser Energy Cannon Beam Cannon Ballistic Gun Improved Assault Rifle Launcher Grenade Launcher Build | -11 -10 -10 -10 -9 -8 ------- Run | Yrd Mat Min Exi Min Mat Slots Evolved 4 | . . . . . 4 Power . | . . . . . . Propulsion . | . . . . . . Utility 3 | . . . . . 3 Weapon 1 | . . . . . 1 Parts Attached 31 | 6 3 . 1 3 18 Power 4 | 1 . . . 1 2 Engine 4 | 1 . . . 1 2 Core . | . . . . . . Reactor . | . . . . . . Propulsion 6 | 2 . . . . 4 Treads 4 | 2 . . . . 2 Leg . | . . . . . . Wheel . | . . . . . . Hover 1 | . . . . . 1 Flight 1 | . . . . . 1 Utility 9 | 1 2 . . 1 5 Device 2 | . . . . . 2 Storage 2 | 1 1 . . . . Processor 3 | . 1 . . 1 1 Hackware . | . . . . . . Protection 2 | . . . . . 2 Artifact . | . . . . . . Weapon 12 | 2 1 . 1 1 7 Energy Gun 3 | 2 . . . . 1 Energy Cannon 3 | . 1 . . . 2 Ballistic Gun 4 | . . . . . 4 Ballistic Cannon . | . . . . . . Launcher 2 | . . . 1 1 . Special Weapon . | . . . . . . Impact Weapon . | . . . . . . Slashing Weapon . | . . . . . . Piercing Weapon . | . . . . . . Special Melee Weapon . | . . . . . . Unidentified Prototypes 1 | . . . . . 1 Parts Lost 16 | . . . . 2 14 Power 2 | . . . . 1 1 Propulsion 2 | . . . . . 2 Utility 3 | . . . . . 3 Weapon 9 | . . . . 1 8 Highest Loss Streak 12 | . . . . 1 12 To Critical Strikes . | . . . . . . Average Backups 5 | 1 5 5 5 5 5 Power . | . 1 1 1 . 1 Propulsion 1 | . 1 1 1 1 1 Utility . | . . . . . . Weapon 2 | . 2 3 3 2 2 Tool/Special . | . . . . . . Unused Backups 3 | . 1 . . . 2 Power 1 | . . . . . 1 Propulsion 2 | . 1 . . . 1 Utility . | . . . . . . Weapon . | . . . . . . Tool/Special . | . . . . . . Average Slot Usage (%) 92 | . 91 100 100 99 74 Engine 12 | . 14 14 14 13 8 Treads 24 | . 28 28 28 28 11 Device 1 | . . . . . 6 Storage 12 | . 13 14 14 14 5 Processor 14 | . 7 14 14 14 17 Energy Gun 11 | . 19 14 14 13 1 Energy Cannon 8 | . 8 14 7 13 3 Ballistic Gun 3 | . . . . . 15 Launcher 2 | . . . 6 1 . Peak Build Rating 31 | 6 7 7 7 9 31 Average Rating 10 | 4 6 7 7 7 22 On Entrance 6 | . 6 7 7 7 9 Naked Turns . | . . . . . . Heaviest Build 29 | 14 15 15 15 17 29 Greatest Support 40 | 40 40 40 40 40 40 Greatest Overweight (x) 3 | . . . . . 3 Average Overweight (x) . | . . . . . . Largest Inventory Capacity 25 | 8 25 8 8 8 8 Average Capacity 7 | 6 7 8 8 8 6 Most Carried 8 | 4 7 5 5 8 8 Average Carried 5 | 1 5 5 5 5 5 Final Capacity 8 | 8 8 8 8 8 5 Final Carried 8 | 4 5 5 5 8 4 Class Distribution -------------------- 86% | Mutant 8% | Scavenger-Gunner 5% | Gunner Dominant Class ---------------- Mutant | -10/Materials Mutant | -10/Mines Mutant | -10/Exiles Mutant | -9/Mines Mutant | -8/Materials Resources | -11 -10 -10 -10 -9 -8 ----------- Run | Yrd Mat Min Exi Min Mat Matter Collected 977 | 114 94 . . 248 521 Remotely . | . . . . . . Salvage Created 1644 | 64 109 . . 313 1158 Parts 80 | 3 6 . . 15 56 Haulers Intercepted 2 | . 1 . . . 1 Recyclers Shooed 3 | . . . . 2 1 Parts Field Recycled . | . . . . . . Retrieved Matter . | . . . . . . Parts Self-Destructed . | . . . . . . Prevented . | . . . . . . Kills | -11 -10 -10 -10 -9 -8 ------- Run | Yrd Mat Min Exi Min Mat Combat Hostiles Destroyed 41 | . 1 . . 23 17 Guns 9 | . . . . 1 8 Cannons 11 | . 1 . . 6 4 AOE 21 | . . . . 16 5 Classes Destroyed 13 | 1 3 . . 4 5 Builder 1 | . . . . . 1 Tunneler 3 | . . . . 1 2 Hauler 2 | . 1 . . . 1 Recycler 6 | 1 . . . 1 4 Mechanic 1 | . . . . . 1 Operator 1 | . . . . . 1 Watcher 3 | . 1 . . . 2 Swarmer 6 | . . . . 3 3 Grunt 12 | . 1 . . 3 8 Brawler 1 | . . . . . 1 Duelist 1 | . . . . 1 . Sentry 5 | . . . . . 5 Assembled 16 | . . . . 16 . Best Kill Streak 16 | 1 3 . . 16 9 Combat Bots Only 16 | . 1 . . 16 5 Max Kills in Single Turn 4 | 1 1 . . 4 4 Gunslinging . | . . . . . . Exploded 4 | . . . . 4 3 Melee . | . . . . . . Uniques/NPCs Destroyed . | . . . . . . Combat | -11 -10 -10 -10 -9 -8 -------- Run | Yrd Mat Min Exi Min Mat Hostile Shots Fired 225 | . 4 . . 41 180 Missed 79 | . 2 . . 12 65 Hits 146 | . 2 . . 29 115 Melee 2 | . . . . 2 . Projectile 144 | . 2 . . 27 115 AOE 3 | . . . . 3 . Critical Strikes 3 | . . . . . 3 Damage Taken 2746 | . 21 . 30 584 2111 Core 631 | . 10 . . 65 556 Absorbed by Shields . | . . . . . . Core Remaining (%) 85 | 100 . . . 70 . Volleys Fired 111 | 2 11 . 6 29 63 Largest 3 | 2 2 . 2 2 3 Hottest 130 | 90 110 . 110 110 130 Shots Fired 237 | 4 22 . 11 47 153 Gun 166 | 4 11 . 5 17 129 Cannon 59 | . 11 . 5 21 22 Launcher 12 | . . . 1 9 2 Special . | . . . . . . Kinetic 124 | . . . . . 124 Thermal 98 | 2 22 . 10 38 26 Explosive 12 | . . . 1 9 2 Electromagnetic 3 | 2 . . . . 1 Robot Hit Streak 30 | 3 3 . . 9 30 Robot Miss Streak 5 | . 5 . . 2 2 Penetration Max . | . . . . . . Secondary Targets 4 | . . . . . 4 Max Gunslinging Chain 1 | . . . . . 1 Shots Hit Robots 160 | 3 5 . . 33 119 Core Hits 97 | 2 3 . . 42 50 Critical Kills . | . . . . . . Critical Parts Destroyed . | . . . . . . Critical Strikes 1 | . . . . 1 . Burn 1 | . . . . 1 . Melee Attacks . | . . . . . . Impact . | . . . . . . Slashing . | . . . . . . Piercing . | . . . . . . Sneak Attacks . | . . . . . . Combat Hostiles . | . . . . . . Follow-up Attacks . | . . . . . . Damage Inflicted 4112 | 37 83 . . 1516 2476 Guns 1734 | 37 12 . . 174 1511 Cannons 702 | . 71 . . 245 386 Explosions 1676 | . . . . 1097 579 Melee . | . . . . . . Ramming . | . . . . . . Kinetic 1447 | . . . . . 1447 Thermal 954 | 12 83 . . 419 440 Explosive 1676 | . . . . 1097 579 Electromagnetic 35 | 25 . . . . 10 Impact . | . . . . . . Slashing . | . . . . . . Piercing . | . . . . . . Highest Corruption . | . . . . . . Average Corruption . | . . . . . . Corruption Purged . | . . . . . . Corruption Blocked . | . . . . . . Overload Shots . | . . . . . . Overflow Damage 53 | . . . . 51 2 Projectiles 1 | . . . . . 1 Explosions 52 | . . . . 51 1 Melee . | . . . . . . Knockbacks . | . . . . . . Impact . | . . . . . . Kinetic . | . . . . . . Secondary . | . . . . . . Self-Inflicted Damage 154 | . . . 30 114 10 Shots 5 | . . . 1 3 1 Rammed . | . . . . . . Targets Rammed . | . . . . . . Kicked . | . . . . . . Crushed . | . . . . . . Highest Temperature 496 | 60 320 . 240 236 496 Average Temperature 108 | 31 146 . 124 71 135 Received Heat Transfer 777 | . 12 . . 36 729 Effects 2 | . . . . . 2 Shutdowns 1 | . . . . . 1 Interference 1 | . . . . . 1 Siege Activations . | . . . . . . Martial Activations . | . . . . . . Shielding Activations . | . . . . . . Robots Disrupted . | . . . . . . Combat Hostiles . | . . . . . . Robots Corrupted . | . . . . . . Combat Hostiles . | . . . . . . Parts Fried . | . . . . . . Impact Corruptions . | . . . . . . Robots Melted . | . . . . . . Combat Hostiles . | . . . . . . Parts Melted 4 | . . . . 1 3 Heat Transferred 1998 | 37 185 . . 1110 666 Parts Sabotaged . | . . . . . . Parts Stolen . | . . . . . . Parts Stripped . | . . . . . . Power Chain Reactions . | . . . . . . Alert | -11 -10 -10 -10 -9 -8 ------- Run | Yrd Mat Min Exi Min Mat Maximum Alert Level 1 | . . . . . 1 Low Security (%) 96 | 100 100 100 . 100 91 Level 1 3 | . . . . . 8 Level 2 . | . . . . . . Level 3 . | . . . . . . Level 4 . | . . . . . . Level 5 . | . . . . . . High Security . | . . . . . . Max Security . | . . . . . . Peak Influence 252 | 5 27 . . 77 252 Initial . | . . . . . . Average 53 | . 4 . . 27 110 Influence Increases 894 | 5 34 . . 204 651 Destroy 0b10 Robot/C 500 | . 20 . . 140 340 Destroy 0b10 Robot/NC 85 | 5 10 . . 10 60 Destroy Leader 120 | . 4 . . 20 96 Allied During Kill 5 | . . . . . 5 Disable Machine 15 | . . . . . 15 Destroy Structure 49 | . . . . 34 15 Lose Combat Pursuer 120 | . . . . . 120 Influence Decreases 650 | 5 34 . . 204 407 Time Decay 470 | 5 34 . . 184 247 Lost Part 160 | . . . . 20 140 Lost Ally 20 | . . . . . 20 Squads Dispatched 6 | . . . . . 6 Investigation 1 | . . . . . 1 Extermination . | . . . . . . Reinforcement 2 | . . . . . 2 Assault . | . . . . . . Garrison 3 | . . . . . 3 Intercept . | . . . . . . Searches Triggered . | . . . . . . Construction Impeded . | . . . . . . Haulers Reinforced . | . . . . . . Active Scanning Responses . | . . . . . . Cargo Convoy Interrupts . | . . . . . . Stealth | -11 -10 -10 -10 -9 -8 --------- Run | Yrd Mat Min Exi Min Mat Distress Signals 3 | . 1 . . . 2 Communications Jammed . | . . . . . . Distress Signals . | . . . . . . Times Spotted 66 | . 2 . . 26 38 Peak Tracking Total 17 | . 2 . . 17 9 Tactical Retreats 4 | . . . . . 4 Traps | -11 -10 -10 -10 -9 -8 ------- Run | Yrd Mat Min Exi Min Mat Traps Triggered 1 | . . . . . 1 Indirectly . | . . . . . . Trap Hack Attempts . | . . . . . . Triggered . | . . . . . . Disarmed . | . . . . . . Reprogrammed . | . . . . . . Reused . | . . . . . . Traps Extracted . | . . . . . . Installed . | . . . . . . Triggered . | . . . . . . Machines | -11 -10 -10 -10 -9 -8 ---------- Run | Yrd Mat Min Exi Min Mat Machines Disabled 3 | . . . 2 . 1 Max in Single Turn 2 | . . . 2 . 1 Machines Repaired . | . . . . . . Machines Dismantled . | . . . . . . Machines Sabotaged . | . . . . . . Overloaded Fab Kills . | . . . . . . Hacking | -11 -10 -10 -10 -9 -8 --------- Run | Yrd Mat Min Exi Min Mat Machines Accessed 5 | . . . 4 . 1 Terminals 1 | . . . . . 1 Fabricators . | . . . . . . Repair Stations . | . . . . . . Recycling Units . | . . . . . . Scanalyzers . | . . . . . . Garrison Access . | . . . . . . Total Hacks 6 | . . . 4 . 2 Successful 5 | . . . 4 . 1 Failed 1 | . . . . . 1 Catastrophic . | . . . . . . Database Lockouts . | . . . . . . Manual . | . . . . . . Terminals 2 | . . . . . 2 Fabricators . | . . . . . . Repair Stations . | . . . . . . Recycling Units . | . . . . . . Scanalyzers . | . . . . . . Garrison Access . | . . . . . . Terminal Hacks 5 | . . . 4 . 1 Record 5 | . . . 4 . 1 Fabricator Hacks . | . . . . . . Repair Station Hacks . | . . . . . . Recycling Unit Hacks . | . . . . . . Scanalyzer . | . . . . . . Garrison Access Hacks . | . . . . . . Unauthorized Hacks . | . . . . . . Terminals . | . . . . . . Fabricators . | . . . . . . Repair Stations . | . . . . . . Recycling Units . | . . . . . . Scanalyzers . | . . . . . . Garrison Access . | . . . . . . Data Cores Recovered 1 | . . . . . 1 Used . | . . . . . . Hacking Detections . | . . . . . . Full Trace Events . | . . . . . . Feedback Events . | . . . . . . Feedback Blocked . | . . . . . . Robot Schematics Acquired . | . . . . . . Robots Built . | . . . . . . Authchips . | . . . . . . Time . | . . . . . . Total Robot Build Rating . | . . . . . . Part Schematics Acquired . | . . . . . . Parts Built . | . . . . . . Authchips . | . . . . . . Time . | . . . . . . Total Part Build Rating . | . . . . . . Parts Repaired . | . . . . . . Time . | . . . . . . Parts Recycled . | . . . . . . Recycled Matter . | . . . . . . Retrieved Matter . | . . . . . . Retrieved Components . | . . . . . . Parts Scanalyzed . | . . . . . . Part Schematics Acquired . | . . . . . . Parts Damaged . | . . . . . . Bothacking | -11 -10 -10 -10 -9 -8 ------------ Run | Yrd Mat Min Exi Min Mat Used RIF Installer . | . . . . . . Robots Hacked . | . . . . . . Non-combat . | . . . . . . Combat . | . . . . . . Robot Hacks Applied . | . . . . . . Relay Couplers Released . | . . . . . . Fabnet Peak Effective % . | . . . . . . Robots Rewired . | . . . . . . Allies Hacked . | . . . . . . Hacks Repelled . | . . . . . . Allies | -11 -10 -10 -10 -9 -8 -------- Run | Yrd Mat Min Exi Min Mat Total Allies 1 | . . . . 1 . Largest Group 1 | . . . . 1 1 Highest-Rated Group 31 | . . . . 31 31 Highest-Rated Ally 31 | . . . . 31 31 Total Orders . | . . . . . . Ally Attacks 10 | . . . . . 10 Total Damage 190 | . . . . . 190 Kills . | . . . . . . Allies Corrupted . | . . . . . . Allies Melted . | . . . . . . Intel | -11 -10 -10 -10 -9 -8 ------- Run | Yrd Mat Min Exi Min Mat Active Infowar (turns) . | . . . . . . Robot Analysis Total . | . . . . . . Derelict Logs Recovered 1 | . . . . 1 . Drone Launches . | . . . . . . Drone Recoveries . | . . . . . . Exploration | -11 -10 -10 -10 -9 -8 ------------- Run | Yrd Mat Min Exi Min Mat Turns Passed 2446 | 97 245 53 1011 476 564 Spaces Moved 1311 | 56 127 34 568 232 294 Core 40 | 12 . . . . 28 Treads 1126 | 44 127 34 568 232 121 Legs . | . . . . . . Wheels . | . . . . . . Hover 71 | . . . . . 71 Flight 74 | . . . . . 74 Fastest Speed 35 | 50 160 160 160 160 35 Average Speed 148 | 136 160 160 160 160 113 Slowest Speed 220 | 160 160 160 160 160 220 Overloaded Moves . | . . . . . . Propulsion Burnouts . | . . . . . . Robots Hopped . | . . . . . . Potential Cave-ins . | . . . . . . Cave-ins Triggered . | . . . . . . Exploration Rate (%) 36 | 3 24 17 91 58 26 Regions Visited 5 Branch Regions 3 Pre-discovered Areas 2 | . . . . 2 . Known Exits Taken . | . . . . . . Unknown Exits Taken 5 | 1 1 1 1 1 . Scrap Searched 3 | . . . . 3 . Spaces Dug . | . . . . . . Terrain Destroyed 86 | . . . 8 65 13 Melee . | . . . . . . Projectile 6 | . . . . . 6 AOE 80 | . . . 8 65 7 Terrain Rammed . | . . . . . . Walls Destroyed . | . . . . . . Machines Disabled . | . . . . . . Actions | -11 -10 -10 -10 -9 -8 --------- Run | Yrd Mat Min Exi Min Mat Total 1605 | 73 146 33 659 288 406 Wait 107 | . . . 85 18 4 Move 1306 | 55 126 33 567 231 294 Hop . | . . . . . . Pick Up 31 | 10 4 . . 5 12 Fast Attach 4 | . 1 . . . 3 Attach 24 | 6 1 . . 2 15 Detach 2 | . . . . . 2 Swap 10 | . 2 . 1 3 4 Drop 10 | . 1 . . . 9 Fire 111 | 2 11 . 6 29 63 Melee . | . . . . . . Ram . | . . . . . . Kick . | . . . . . . Crush . | . . . . . . Escape Stasis . | . . . . . . Rewire . | . . . . . . Trap . | . . . . . . Miscellaneous . | . . . . . . Route ------- -11/Scrapyard -10/Materials -10/Mines -10/Exiles (discovered 2 exits: [*Min x2]) -9/Mines -8/Materials History --------- Turn | Location | Event 3 | -11/Scrapyard | Discovered new exit (range 15) 98 | -11/Scrapyard | Entered Materials 299 | -10/Materials | Discovered new exit (range 7) 307 | -10/Materials | Build established: Mutant 343 | -10/Materials | Entered Mines 371 | -10/Mines | Met a Derelict bent on vengeance 388 | -10/Mines | Deemed a non-threat by the Exiles lab entrance 390 | -10/Mines | Discovered new exit (range 5) 396 | -10/Mines | Entered Exiles 396 | -10/Exiles | Found Exiles lab abandoned 838 | -10/Exiles | Discovered new exit (range 10) 1390 | -10/Exiles | Discovered new exit (range 14) 1407 | -10/Exiles | Entered Mines 1587 | -9/Mines | Learned location of Storage (-7) 1632 | -9/Mines | Received a Rocket Launcher from a helpful Derelict 1658 | -9/Mines | Assembled infested the area 1663 | -9/Mines | Assisted by a Guerilla fighting off Assembled 1696 | -9/Mines | Discovered new exit (range 13) 1703 | -9/Mines | Destroyed 16 combat bots 1704 | -9/Mines | Found the Drone Emporium 1742 | -9/Mines | Escorted by a lone wolf Derelict 1883 | -9/Mines | Entered Materials 1883 | -8/Materials | Accompanied by 1 ally 1883 | -8/Materials | Evolved 4 slots: Utility x3, Weapon x1 2228 | -8/Materials | Garrison activated, responded to threat 2260 | -8/Materials | Core integrity fell below 50% 2314 | -8/Materials | Lost 12 parts (1p2n2u7w) 2369 | -8/Materials | Core integrity fell below 20% 2447 | -8/Materials | Destroyed by G-47 Trooper with Particle Gun Last Messages --------------- Acquired Lgt. Armor Plating. ALERT: Suspicious intruders detected, dispatching Specialist reinforcements to area. W-25 Informer sends out distress signal. Acquired Imp. Utility Shielding. Hvy. Ion Cannon destroyed. S-10 Pest destroyed. Dropped Lgt. Armor Plating. Slug penetrates Wall. S-10 Pest destroyed. Acquired Cesium-ion Thruster. Dropped Imp. Utility Shielding. Dropped Imp. Deuterium Engine. Acquired 20 matter. U-05 Engineer builds a Door. Acquired 59 matter. Acquired 6 matter. Acquired Imp. Heat Sink. Acquired 3 matter. Acquired 31 matter. Map ----- +----------------------------------------------------+ | ####?????????????????????????????????????????????? | | !#?????????????????????????????????????????????? | | #?????????????????????????????????????????????? | | !#?????????????????????????????????????????????? | | #?????????????????????????????????????????????? | | #?????????????????????????????????????????????? | | #?????????????????????????????????????????????? | | #????????#????????????????????????????????????? | | ?????????# ???????????????????????????????????? | | ??#????????# ??????????????????????????????????? | | #???????????# ?????????????????????????????????? | | #???????????? #????#+#?????????????????????????? | | #????????????? ##### #####?????????????????????? | | #####??????????? ??????????????????????? | | = ??H?? #???????????????????????? | | ########?????????? #???????????????????????? | | ???????????????????# #???????????????????????? | | #?????????????+##### #???????????????????????? | | ??????????????? # #???####????????????????? | | #?????????????? # #?? ! #????????????????? | | #?????????????? # #?? +????????????????? | | #??????????????? # = #?! #????????????????? | | ###????????????? # % #?! #????????????????? | | ####################% [* #!!gk a#????????????????? | | * % % %% # #????????????????? | | %= =[! @ #????????????????? | | = ""% = # """ #????????????????? | | ##+########## " ! # """ #????????????????? | | ?# ??????## " % ####?""" #????????????????? | | ?# ! ??????# ! #???? #????????????????? | | ?# ?????# % #????? ?????????????????? | | ?# ????# %%" #?????#####????????????????? | | ?# ???# "%" #??????????????????????????? | | ?# ?## """ #??????????????????????????? | | ?# ##" % #??????????????????????????? | | ?? ## #??????????????????????????? | | ?? ! ?#" """ #??????????????????????????? | | ??########### """ ##?????????????????????????? | | ????????????# """ #?????????????????????????? | | ????????????# #?????????????????????????? | | ????????????# #?????????????????????????? | | ????????????######## #?????????????????????????? | | ???????????????????# #?????????????????????????? | | ???????????????????# #??????????#?#????????????? | | ????????????######## #?????????? ?????????????? | | ???????????##!! !# #???????? ?????????????? | | ???????????#%![ # #???????? ?????????????? | | ????????????#!! # #????????""" ?????????????? | | ????????????#! "T" + #????????"" ??????????????? | | ????????????# """ # #???????? ??????????????? | +----------------------------------------------------+ Best States ------------- Heat Dissipation 45 Energy Generation 18 Energy Capacity 290 Matter Stores 300 Matter Capacity 300 Sight Range 16 Terrain Scan Density 10 Armor Coverage 150 Resistance: EX 25 Utility Shielding 66 Evasion (%) 63 Targeting Accuracy 6 Launcher Accuracy 20 Recoil Reduction 2 Item Schematics ----------------- None Robot Schematics ------------------ None Fabricated ------------ Nothing Repaired ---------- Nothing Alien Tech Used ----------------- None Achievements -------------- None Challenges ------------ None Game ------ Seed LaserHybridProcessor Manual? 0 Play Time 00:16:08 Cumulative 120.2 hours Start 2025.09.01 @ 16:19:21 End 2025.09.01 @ 16:35:12 Sessions 1 Manual Loads 0 Difficulty Rogue Special Mode None Game No. 434 Rogue 434 Adventurer 0 Explorer 0 Win Type - Total 0 Types 0/0/0/0/0/0/0/0/0/0 Lore% 46 Gallery% 45 Achievement% 32 Wizard Run 0 Options --------- Layout 2 ASCII 0 Keyboard 0 Movement Mouse Keybinds 0 Fullscreen 2 Font 24/Smallcaps Map View 50x44 Zoom Use 0% Tactical HUD 0 Map Filters NONE Filters NONE Steam 1 RUN: f53c4519-f9bc-49a2-9311-89b2293ba54a